bitfinex-derivatives/quotes_ETHF0:USTF0_20251021
["timestamp","ask_amount","ask_price","bid_price","bid_amount"]
[1761012228219,2.54259397,3940.5,3940.4,0.62621568]
[1761012229323,2.54259397,3940.5,3940.4,0.00311568]
[1761012231025,1.2455,3939.9,3939.8,0.91104066]
[1761012231221,0.3794,3940.0,3939.6,1.36162653]
[1761012231222,1.2455,3939.7,3939.6,10.0891]
[1761012231519,2.1612,3939.7,3939.6,11.5939]
[1761012231827,2.5406,3939.5,3939.4,0.6231]
[1761012232023,2.1612,3939.5,3939.4,2.13054153]
[1761012232720,2.5406,3939.5,3939.4,1.27154153]
[1761012232920,2.5406,3939.5,3939.4,2.13054153]
[1761012233218,2.37086,3940.0,3939.7,1.2689]
[1761012233422,2.1612,3939.9,3939.8,1.2689]
[1761012234009,2.1612,3939.9,3939.8,2.1279]
[1761012234415,2.1612,3939.9,3939.8,1.2689]
[1761012234715,2.1612,3939.6,3939.5,2.1279]
[1761012234918,2.1612,3939.6,3939.5,1.2689]
[1761012235118,2.1612,3939.6,3939.5,0.6231]
[1761012235625,2.1612,3939.6,3939.5,2.1279]
[1761012236116,0.9157,3939.6,3939.5,2.1279]
[1761012236325,1.5347,3939.9,3939.8,2.1279]
[1761012236515,2.1612,3939.9,3939.8,2.1279]
[1761012236716,2.61797,3939.9,3939.8,0.6231]
[1761012237927,2.1612,3939.9,3939.8,2.0486]
[1761012238427,2.1612,3939.9,3939.8,1.2689]
[1761012240225,2.1612,3939.9,3939.8,2.0486]
[1761012240426,1.52315397,3940.5,3939.4,9.46364153]
[1761012240427,1.9919,3940.4,3940.3,0.5504]
[1761012240926,1.9919,3939.7,3939.6,11.3784]
[1761012241122,1.9919,3939.7,3939.6,10.5987]
[1761012241324,1.9919,3939.7,3939.6,11.3784]
[1761012241620,2.3512,3939.5,3939.4,0.00264153]
[1761012243622,1.9919,3938.6,3938.5,0.5504]
[1761012244522,1.9919,3938.6,3938.5,0.55253892]
[1761012244725,1.9919,3938.6,3938.5,0.00213892]
[1761012245430,8.88941164,3942.4,3938.5,0.00213892]
[1761012245431,1.3821,3938.9,3938.8,1.82789]
[1761012245618,0.8368,3939.1,3938.9,0.7797]
[1761012245815,1.3821,3939.4,3939.3,1.1417]
[1761012246024,1.3821,3939.4,3939.3,1.9214]
[1761012246229,1.9919,3939.4,3939.3,1.1417]
[1761012246420,1.1551,3939.1,3939.0,1.00726]
[1761012246621,1.9919,3939.1,3939.0,2.37826]
[1761012246926,1.9919,3939.1,3939.0,1.9214]
[1761012247516,0.8368,3939.4,3939.3,1.1417]
[1761012247722,1.3821,3939.4,3939.3,1.9214]
[1761012248023,1.3821,3939.4,3939.3,2.37823]
[1761012248418,1.9919,3939.4,3939.3,1.1417]
[1761012249120,1.9919,3939.4,3939.3,1.9214]
[1761012249532,1.9919,3939.4,3939.3,1.1417]
[1761012250523,1.9919,3939.4,3939.3,1.9214]
[1761012250724,2.3512,3940.0,3939.4,0.7797]
[1761012250929,2.3512,3940.0,3939.9,1.9214]
[1761012251931,2.3512,3940.0,3939.9,1.1417]
[1761012252319,5.9691,3940.0,3939.2,0.90890915]
[1761012252626,1.0368,3937.5,3936.9,1.81566382]
[1761012252822,1.0368,3937.5,3936.9,0.7797]
[1761012252823,0.8368,3937.3,3936.9,0.7797]
[1761012253027,0.8368,3937.8,3937.1,0.7797]
[1761012253227,0.45702,3937.7,3937.1,0.7797]
[1761012253425,1.29382,3937.7,3937.1,0.7797]
[1761012253732,0.00241462,3937.7,3937.2,0.7797]
[1761012254425,0.83921462,3937.7,3937.2,0.7797]
[1761012254726,0.8368,3937.4,3937.2,0.7797]
[1761012256230,0.7938,3937.2,3937.1,0.00241349]
[1761012256528,0.00241462,3937.7,3937.1,0.00241349]
[1761012256529,0.45943462,3937.7,3937.2,0.3369]
[1761012256734,0.00241462,3937.7,3937.3,0.7958]
[1761012257032,0.00241462,3937.7,3937.6,0.7958]
[1761012258738,0.00241462,3937.7,3937.2,0.3369]
[1761012258739,0.45943462,3937.7,3937.3,0.7958]
[1761012259239,0.00241462,3937.7,3937.3,0.7958]
[1761012259835,0.00241462,3937.7,3937.4,0.7958]
[1761012260140,0.7938,3937.2,3937.1,0.00241349]
[1761012261630,0.45706,3937.3,3937.1,0.79821349]
[1761012262227,0.7938,3937.2,3937.1,0.00241349]
[1761012262536,0.45706,3937.3,3937.1,0.79821349]
[1761012262731,0.45706,3937.3,3937.2,0.3369]
[1761012262929,0.45706,3937.3,3937.2,1.1327]
[1761012263126,0.7938,3937.2,3937.1,0.00241349]
[1761012263331,0.9938,3937.2,3937.1,0.00241349]
[1761012264230,0.7938,3937.2,3937.1,0.00241349]
[1761012267844,1.87,3937.2,3937.1,0.00241349]
[1761012268839,0.5424,3937.5,3937.2,0.7503]
[1761012269038,1.53326,3937.4,3937.3,1.8609]
[1761012269236,0.45706,3937.4,3937.3,1.8609]
[1761012269435,2.32386,3937.4,3937.3,0.7503]
[1761012269643,2.32388,3937.2,3937.1,0.75271349]
[1761012269942,1.53328,3937.2,3937.1,1.29491349]
[1761012270141,0.45703,3937.6,3937.5,1.0628]
[1761012270731,1.24763,3937.6,3937.5,1.0628]
[1761012270935,1.24763,3937.6,3937.5,0.7503]
[1761012271335,0.45703,3937.6,3937.5,0.7503]
[1761012271538,1.24763,3937.6,3937.5,0.7503]
[1761012272650,0.45703,3937.6,3937.5,0.7503]
[1761012272840,1.53323,3937.6,3937.5,1.2925]
[1761012273152,2.32383,3937.6,3937.5,1.2925]
[1761012273352,2.32383,3937.6,3937.5,0.7503]
[1761012274447,0.45708,3937.2,3937.1,0.00241349]
[1761012274644,2.32388,3937.2,3937.1,0.00241349]
[1761012274842,0.45707,3937.3,3937.1,1.11301349]
[1761012275048,0.45707,3937.3,3937.2,0.7503]
[1761012275248,0.99947,3937.3,3937.2,1.8609]
[1761012276343,0.45706,3937.3,3937.2,1.8609]
[1761012277652,0.99946,3937.3,3937.2,1.8609]
[1761012277950,2.32386,3937.3,3937.2,1.8609]
[1761012278250,1.53326,3937.3,3937.2,1.8609]
[1761012279356,0.00241462,3937.7,3937.2,1.8609]
[1761012279357,0.45705,3937.5,3937.2,1.1106]
[1761012279550,0.45705,3937.5,3937.1,0.00241349]
[1761012279551,0.45705,3937.5,3937.4,1.1106]
[1761012279753,0.45705,3937.5,3937.4,1.8609]
[1761012279951,1.53325,3937.5,3937.4,1.8609]
[1761012280156,2.32385,3937.5,3937.4,0.7503]
[1761012280857,2.32385,3937.5,3937.4,1.2925]
[1761012281154,1.53325,3937.5,3937.4,1.2925]
[1761012281656,2.32385,3937.5,3937.4,1.2925]
[1761012282250,2.89397357,3937.5,3937.4,1.2925]
[1761012282761,2.32387,3937.2,3936.1,1.36041335]
[1761012282946,0.45715,3936.6,3936.5,0.8547]
[1761012283148,2.32395,3936.6,3936.5,1.1106]
[1761012283446,2.2044,3936.0,3935.9,0.57584]
[1761012283654,2.77435913,3936.0,3935.9,0.57584]
[1761012283860,2.77435913,3936.0,3935.9,0.57767212]
[1761012285260,2.2044,3936.0,3935.9,0.57767212]
[1761012286366,2.2044,3936.0,3935.9,1.11987212]
[1761012286961,2.2044,3936.0,3935.9,0.57767212]
[1761012287869,0.7906,3936.3,3935.9,2.43857212]
[1761012288171,2.32394,3936.6,3936.5,1.8609]
[1761012288355,2.8931335,3936.6,3936.5,1.8609]
[1761012288552,2.8931335,3936.6,3935.9,0.57767212]
[1761012288553,1.79019,3936.2,3936.1,1.2925]
[1761012288757,2.32399,3936.2,3936.1,1.2925]
[1761012288967,2.32399,3936.2,3936.1,1.8609]
[1761012289163,0.5424,3936.2,3936.1,1.8609]
[1761012289566,1.79016,3936.5,3936.4,1.8609]
[1761012290566,1.79018,3936.3,3936.2,1.8609]
[1761012290765,0.5424,3936.5,3936.4,0.45716]
[1761012290973,1.8709,3937.0,3936.9,0.5422]
[1761012291268,2.44007441,3937.0,3936.9,0.5422]
[1761012291454,3.23067441,3937.0,3936.9,0.5422]
[1761012292766,1.333,3936.5,3936.0,1.4231]
[1761012292971,1.333,3936.5,3936.4,1.8609]
[1761012293173,1.8668,3936.5,3936.4,1.8609]
[1761012293471,1.0762,3936.5,3936.4,1.8609]
[1761012293765,1.0762,3936.9,3936.6,0.7503]
[1761012293965,1.333,3936.4,3936.3,0.7503]
[1761012294170,2.32397,3936.4,3936.3,1.2925]
[1761012294856,1.333,3936.7,3936.6,1.8609]
[1761012295063,0.99952,3936.8,3936.7,1.8609]
[1761012295373,2.89309111,3936.8,3936.7,1.8609]
[1761012296266,1.56869111,3936.8,3936.7,1.8609]
[1761012296569,1.79009,3937.1,3937.0,0.5422]
[1761012296868,2.32389,3937.1,3937.0,1.8609]
[1761012299777,0.45708,3937.2,3937.1,1.7338]
[1761012299978,0.93598,3937.2,3937.1,1.7338]
[1761012301071,1.64748,3937.2,3937.1,1.7338]
[1761012301374,1.70181462,3937.7,3937.6,1.7338]
[1761012301872,2.15646,3937.3,3937.2,1.7338]
[1761012302070,0.9879,3937.3,3937.2,1.7338]
[1761012302572,0.45705,3937.4,3937.2,1.7338]
[1761012302772,0.93594,3937.6,3937.5,2.0445]
[1761012303362,2.15644,3937.6,3937.5,2.0445]
[1761012303567,2.15644,3937.6,3937.5,1.7338]
[1761012303778,1.6994,3937.2,3937.1,1.2356]
[1761012303978,0.9879,3937.2,3937.1,1.7338]
[1761012304181,0.00241462,3937.7,3937.6,2.19083]
[1761012304381,2.15631,3938.6,3938.5,1.2356]
[1761012304578,2.15631,3938.6,3938.5,0.503]
[1761012304878,2.15634,3938.3,3938.2,1.2356]
[1761012305079,1.6994,3938.3,3938.2,1.7338]
[1761012305468,1.7019878,3938.3,3938.2,1.7338]
[1761012305871,0.4814878,3938.3,3938.2,1.89664162]
[1761012306373,1.7019878,3938.3,3938.2,0.7326]
[1761012306565,1.6994,3938.1,3938.0,1.2356]
[1761012306770,1.6994,3938.1,3938.0,0.503]
[1761012307366,0.7115,3937.7,3937.3,1.2356]
[1761012307573,1.6994,3937.4,3937.3,1.7338]
[1761012307978,1.6994,3938.0,3937.9,1.7338]
[1761012308177,1.1904,3937.3,3937.2,10.4082]
[1761012308373,0.4789,3937.3,3937.2,10.4082]
[1761012308683,0.4789,3937.6,3937.5,2.0445]
[1761012309183,0.93586,3938.2,3938.1,1.7338]
[1761012309582,0.4789,3938.2,3938.1,1.7338]
[1761012309778,0.4789,3938.2,3938.0,0.76767]
[1761012309779,0.0025878,3938.3,3938.2,2.19076]
[1761012310381,1.7019878,3938.3,3938.2,1.7338]
[1761012311385,0.0025878,3938.3,3938.2,1.7338]
[1761012312394,0.4814878,3938.3,3938.2,1.7338]
[1761012312579,1.1929878,3938.3,3938.2,1.7338]
[1761012312777,1.7019878,3938.3,3938.2,1.0012]
[1761012312977,0.45701,3937.7,3937.6,1.7338]
[1761012313281,2.15641,3937.7,3937.6,1.2356]
[1761012313492,2.15641,3937.7,3937.6,1.7338]
[1761012314283,2.15641,3937.7,3937.6,1.0012]
[1761012314478,2.15641,3937.7,3937.6,0.503]
[1761012314688,1.16851,3937.7,3937.6,1.7338]
[1761012314882,2.15641,3937.7,3937.6,0.503]
[1761012315886,2.01449,3937.1,3937.0,1.1825]
[1761012316188,2.01449,3937.1,3937.0,0.471]
[1761012316488,2.01452,3936.8,3936.7,1.1825]
[1761012316680,2.01452,3936.8,3936.7,1.6607]
[1761012316881,0.4466,3936.8,3936.7,1.6607]
[1761012317887,0.9037,3937.0,3936.9,0.9492]
[1761012318084,0.9037,3937.0,3936.9,1.6607]
[1761012318289,1.5777,3937.0,3936.9,1.6607]
[1761012318479,2.0145,3937.0,3936.9,1.6607]
[1761012319176,1.8361,3936.0,3935.9,0.57767212]
[1761012319889,1.5574,3936.0,3935.9,1.76017212]
[1761012320592,1.5574,3936.0,3935.9,1.04867212]
[1761012320889,1.5574,3936.0,3935.9,2.23837212]
[1761012321084,1.1206,3936.4,3935.9,1.52687212]
[1761012321282,2.01457,3936.4,3936.3,0.471]
[1761012321483,2.01461,3936.1,3936.0,1.1825]
[1761012321785,2.01461,3936.1,3936.0,0.471]
[1761012323486,2.01461,3936.1,3935.9,0.57767212]
[1761012323787,1.8361,3936.0,3935.9,1.76017212]
[1761012324083,1.5574,3936.0,3935.9,1.76017212]
[1761012324283,0.4466,3936.0,3935.9,2.23837212]
[1761012324489,1.1206,3936.0,3935.9,2.23837212]
[1761012324685,0.4466,3936.0,3935.9,2.69559212]
[1761012324881,1.57778,3936.3,3936.2,1.6607]
[1761012325386,2.01458,3936.3,3936.2,1.6607]
[1761012325581,2.01458,3936.3,3936.2,0.471]
[1761012325793,2.01461,3936.0,3935.9,1.04867212]
[1761012325985,2.29331,3936.0,3935.9,0.57767212]
[1761012328983,1.59801,3935.2,3935.1,1.5303]
[1761012329185,1.59804,3934.9,3934.8,0.6501]
[1761012329389,2.04954,3934.9,3934.8,0.6501]
[1761012329793,2.04954,3934.9,3934.8,1.0701]
[1761012330080,2.05154439,3934.9,3934.8,0.0019175]
[1761012331190,0.45741,3934.3,3934.0,0.45744]
[1761012331491,0.9626,3934.5,3934.0,1.816]
[1761012331793,0.4525,3934.4,3934.3,1.5303]
[1761012331989,1.5922,3934.4,3934.0,0.2857]
[1761012332191,1.1407,3934.3,3934.2,1.1103]
[1761012332389,1.1407,3934.3,3934.0,0.00246234]
[1761012332390,0.4525,3934.1,3934.0,0.00246234]
[1761012332702,1.5922,3934.1,3934.0,0.42246234]
[1761012333495,1.5922,3934.1,3934.0,0.00246234]
[1761012333897,1.5922,3934.1,3934.0,0.42246234]
[1761012335086,0.45743,3934.2,3934.0,1.53276234]
[1761012335286,2.04963,3934.2,3934.1,1.5303]
[1761012336295,0.45743,3934.2,3934.1,1.5303]
[1761012336487,1.59813,3934.2,3934.1,1.5303]
[1761012338194,1.1407,3934.2,3934.1,1.5303]
[1761012338507,0.4525,3934.2,3934.1,1.5303]
[1761012340104,0.45742,3934.3,3934.2,0.6501]
[1761012340404,0.90992,3934.3,3934.2,1.5303]
[1761012340801,2.0496,3934.4,3934.3,1.0701]
[1761012341113,2.0496,3934.4,3934.3,0.42]
[1761012342202,2.0496,3934.4,3934.3,1.0701]
[1761012343899,2.04963,3934.1,3934.0,0.42246234]
[1761012344199,2.04963,3934.1,3934.0,0.00246234]
[1761012344400,2.04963,3934.1,3934.0,1.07256234]
[1761012344700,2.04963,3934.1,3934.0,0.42246234]
[1761012345000,1.1397,3933.2,3933.1,1.5303]
[1761012345209,0.6882,3934.3,3933.7,0.45747]
[1761012345496,2.04964,3934.1,3934.0,0.6501]
[1761012345701,0.91004,3933.3,3933.2,0.8802]
[1761012346094,0.91004,3933.3,3933.2,0.88235826]
[1761012346291,0.91004,3933.3,3933.2,1.53245826]
[1761012346500,0.4525,3933.3,3933.2,1.53245826]
[1761012346804,2.04967,3933.8,3933.7,1.5303]
[1761012346991,0.904,3933.6,3933.5,1.0701]
[1761012347198,1.5922,3933.6,3933.5,1.5303]
[1761012347796,0.904,3934.4,3934.3,0.42]
[1761012347994,0.4525,3934.5,3934.4,0.6501]
[1761012348193,0.4525,3934.5,3934.4,1.5303]
[1761012348194,2.04959,3934.5,3934.4,1.5303]
[1761012348404,0.45742,3934.2,3934.1,0.6501]
[1761012348699,2.04962,3934.2,3934.1,0.42]
[1761012349012,1.14567,3933.8,3933.7,1.5303]
[1761012349201,2.04967,3933.8,3933.7,1.5303]
[1761012349507,0.4525,3933.4,3933.3,1.5303]
[1761012349704,0.45751,3933.5,3933.4,1.5303]
[1761012350700,0.9626,3934.0,3933.6,1.5303]
[1761012350701,1.59018261,3933.7,3933.6,1.5303]
[1761012350907,1.59018261,3933.7,3933.6,1.98778]
[1761012351107,1.13768261,3933.7,3933.6,1.98778]
[1761012351498,0.6882,3933.6,3933.2,9.80615826]
[1761012351810,0.4525,3933.3,3933.2,10.91645826]
[1761012352600,1.13768261,3933.7,3933.2,10.91645826]
[1761012352601,1.59517261,3933.7,3933.5,1.1659]
[1761012352800,1.13768261,3933.7,3933.6,1.5303]
[1761012353012,1.59018261,3933.7,3933.6,1.5303]
[1761012353206,2.72988261,3933.7,3933.6,0.42]
[1761012353405,1.5922,3933.4,3933.3,7.8303]
[1761012353710,2.04972,3933.4,3933.3,7.8303]
[1761012354212,1.36152,3933.4,3933.3,7.8303]
[1761012354407,0.91002,3933.4,3933.3,7.8303]
[1761012354603,0.91002,3933.4,3933.3,1.5303]
[1761012354604,3.18740261,3933.4,3933.3,1.5303]
[1761012355011,0.91002,3933.4,3933.3,1.5303]
[1761012355213,2.04972,3933.4,3933.3,1.5303]
[1761012355711,2.04972,3933.4,3933.3,0.42]
[1761012355906,2.04972,3933.4,3933.3,1.5303]
[1761012356112,2.04972,3933.4,3933.3,0.42]
[1761012356508,1.5922,3933.3,3933.2,0.00215826]
[1761012358411,2.16627632,3933.3,3933.2,0.00215826]
[1761012359618,2.16627632,3933.3,3933.2,0.42215826]
[1761012359821,2.16627632,3933.3,3933.2,1.46545826]
[1761012360320,0.57407632,3933.3,3933.2,1.46545826]
[1761012360511,0.98407632,3933.3,3933.2,1.46545826]
[1761012360819,2.06542038,3933.3,3933.2,0.00215826]
[1761012361118,2.06542038,3933.3,3933.2,1.43545826]
[1761012361717,2.06542038,3933.3,3933.2,0.00215826]
[1761012362022,2.06542038,3933.3,3933.2,1.43545826]
[1761012362518,2.06542038,3933.3,3933.2,0.82005826]
[1761012363219,2.06542038,3933.3,3933.2,1.43545826]
[1761012365307,2.06542038,3933.3,3933.2,0.82005826]
[1761012365514,2.06542038,3933.3,3933.2,0.39215826]
[1761012365714,2.06542038,3933.3,3933.2,0.00215826]
[1761012366120,1.4911,3932.9,3931.6,1.36041335]
[1761012366418,1.4911,3932.4,3932.3,1.0054]
[1761012366611,1.4911,3932.4,3932.3,1.4333]
[1761012366812,1.94877,3932.2,3932.1,0.6154]
[1761012367023,0.71758,3932.0,3931.9,0.39]
[1761012367224,0.00232067,3932.0,3931.9,1.43531525]
[1761012367515,0.00232067,3932.0,3931.9,1.89300525]
[1761012370216,0.00232067,3932.0,3931.9,8.25855082]
[1761012371217,0.00232067,3932.0,3931.9,6.89300525]
[1761012371721,0.00232067,3932.0,3931.9,16.26600525]
[1761012372319,0.41,3933.0,3932.9,1.4333]
[1761012372520,1.0485,3933.5,3933.4,0.8179]
[1761012372721,2.52248476,3933.5,3933.0,0.2575]
[1761012373020,0.90014,3933.2,3933.1,1.0054]
[1761012373221,1.31014,3933.2,3933.1,1.0054]
[1761012373427,1.49340116,3933.2,3933.1,1.4333]
[1761012373629,0.85490116,3933.2,3933.1,1.4333]
[1761012373926,1.49340116,3933.2,3933.1,1.4333]
[1761012374117,0.85490116,3933.2,3933.1,1.4333]
[1761012374524,1.49340116,3933.2,3933.1,1.4333]
[1761012374720,1.49340116,3933.2,3933.1,0.39]
[1761012375018,1.94869,3932.8,3932.7,0.39]
[1761012375825,1.78892,3932.5,3932.4,0.9971]
[1761012376130,0.7625,3932.5,3932.4,1.3695]
[1761012376329,0.3817,3932.5,3932.4,1.3695]
[1761012376529,0.9505,3932.5,3932.4,1.3695]
[1761012376726,0.3817,3932.8,3932.7,1.3491]
[1761012377630,0.83928,3932.9,3932.8,0.595]
[1761012377833,1.40808,3932.9,3932.8,1.3491]
[1761012378035,1.78888,3932.9,3932.8,1.3491]
[1761012378329,0.00230116,3933.2,3932.5,1.3491]
[1761012378330,1.3313,3932.6,3932.5,1.3491]
[1761012378536,0.3817,3932.6,3932.5,1.5821]
[1761012378926,1.3313,3932.9,3932.8,1.3491]
[1761012379129,0.3817,3932.9,3932.8,1.3491]
[1761012379932,0.45757,3933.0,3932.9,1.3491]
[1761012380134,0.00230116,3933.2,3933.1,1.3491]
[1761012380135,0.84155116,3933.2,3933.1,1.3491]
[1761012380434,1.79115116,3933.2,3933.1,1.3491]
[1761012380634,1.33360116,3933.2,3933.1,1.3491]
[1761012381522,0.00230116,3933.2,3933.1,1.3491]
[1761012381929,0.38400116,3933.2,3933.1,1.3491]
[1761012382132,1.33360116,3933.2,3933.1,0.3817]
[1761012382533,1.33360116,3933.2,3933.1,0.9767]
[1761012382734,1.33360116,3933.2,3933.1,1.3491]
[1761012383633,0.76480116,3933.2,3933.1,1.3491]
[1761012383838,0.38400116,3933.2,3933.1,1.3491]
[1761012384028,1.33360116,3933.2,3933.1,0.9767]
[1761012384731,1.78887,3932.9,3932.8,10.3427]
[1761012385037,1.78887,3932.9,3932.8,10.7151]
[1761012385535,1.22007,3932.9,3932.8,10.7151]
[1761012386141,0.00230116,3933.2,3933.1,1.3491]
[1761012387035,0.5688,3934.2,3933.2,0.595]
[1761012387231,1.78873,3934.2,3934.1,1.3491]
[1761012387436,2.36319529,3934.2,3934.1,1.3491]
[1761012387743,2.36319529,3934.2,3934.1,0.3817]
[1761012388238,2.36637968,3934.2,3934.1,0.3817]
[1761012388743,2.36637968,3934.2,3934.1,0.9076]
[1761012388930,1.3015,3933.6,3933.2,0.5259]
[1761012389243,0.3775,3933.3,3933.2,1.314]
[1761012390044,0.552,3933.7,3933.0,0.23]
[1761012390045,0.835,3933.6,3933.5,1.544]
[1761012390334,0.3775,3932.8,3932.7,10.677]
[1761012390538,1.3015,3933.1,3933.0,1.314]
[1761012391241,0.372,3933.1,3932.8,0.5259]
[1761012391430,1.3015,3932.9,3932.8,10.2727]
[1761012392232,1.3015,3932.9,3932.8,10.675]
[1761012392435,1.00955,3933.2,3932.8,10.60668]
[1761012392638,1.3015,3933.9,3933.8,1.314]
[1761012392937,1.87579431,3933.9,3933.8,1.314]
[1761012393129,1.87579431,3933.9,3933.8,0.7881]
[1761012393328,1.03175431,3933.9,3933.8,1.314]
[1761012393546,1.3015,3933.6,3933.5,0.9117]
[1761012394228,1.3015,3933.6,3933.5,1.314]
[1761012394442,0.3775,3933.6,3933.5,1.544]
[1761012395144,0.83498,3933.8,3933.7,1.314]
[1761012395343,0.45746,3933.9,3933.7,0.7881]
[1761012395641,1.75896,3933.9,3933.8,1.314]
[1761012395839,0.46060439,3934.2,3934.1,1.314]
[1761012396046,0.00318439,3934.2,3934.1,1.314]
[1761012399543,0.45735,3934.9,3934.1,5.7881]
[1761012399745,0.83485,3934.9,3934.8,1.314]
[1761012400344,1.75885,3934.9,3934.8,1.314]
[1761012400541,1.20888892,3934.9,3934.8,1.31694334]
[1761012400847,0.83688892,3934.9,3934.8,1.31694334]
[1761012401048,0.45938892,3934.9,3934.8,1.31694334]
[1761012401251,0.00203892,3934.9,3934.8,1.31694334]
[1761012401655,0.93153892,3934.9,3934.8,1.31694334]
[1761012401948,1.30353892,3934.9,3934.8,1.31694334]
[1761012403746,0.37953892,3934.9,3934.8,1.31694334]
[1761012403942,0.00203892,3934.9,3934.8,1.31694334]
[1761012405554,1.75876,3935.6,3935.5,1.314]
[1761012406552,1.76132034,3935.6,3935.5,1.314]
[1761012406749,0.83732034,3935.6,3935.5,1.544]
[1761012407642,0.00256034,3935.6,3935.5,1.544]
[1761012408856,0.45722,3936.0,3935.9,1.314]
[1761012409448,0.3775,3936.6,3936.5,1.544]
[1761012409652,0.45713,3936.7,3936.6,1.314]
[1761012409848,0.45921948,3936.7,3936.6,1.314]
[1761012410955,0.00208948,3936.7,3936.6,1.314]
[1761012411860,0.00208948,3936.7,3936.6,9.61673108]
[1761012412158,0.45705,3937.4,3937.3,0.3858]
[1761012412351,0.83453,3937.6,3937.5,1.0181]
[1761012412555,0.83453,3937.6,3937.5,1.544]
[1761012412757,0.022,3937.8,3937.7,0.7881]
[1761012412758,0.3995,3937.8,3937.7,0.7881]
[1761012412958,0.479,3937.8,3937.7,1.314]
[1761012413165,1.78358954,3937.8,3937.7,0.91351555]
[1761012413658,1.23158954,3937.8,3937.7,1.31581555]
[1761012413868,0.85958954,3937.8,3937.7,1.31581555]
[1761012414458,0.48208954,3937.8,3937.7,1.31581555]
[1761012415058,0.45695,3938.3,3938.2,1.314]
[1761012415858,0.45694,3938.4,3938.3,0.5259]
[1761012416061,0.45694,3938.4,3938.3,1.314]
[1761012416263,0.83719744,3938.4,3938.3,1.314]
[1761012416967,0.45969744,3938.4,3938.3,1.314]
[1761012417467,0.00275744,3938.4,3938.3,1.314]
[1761012417667,1.2253,3938.1,3938.0,0.8677]
[1761012417869,1.2253,3938.1,3938.0,10.2067]
[1761012418064,1.2253,3938.1,3938.0,10.564]
[1761012418565,1.68227,3938.1,3938.0,10.564]
[1761012418968,0.457,3937.8,3937.7,0.35921555]
[1761012419162,1.6823,3937.8,3937.7,10.56381555]
[1761012419465,1.6823,3937.8,3937.7,0.35921555]
[1761012419663,1.6823,3937.8,3937.7,0.00181555]
[1761012419664,6.6823,3937.8,3937.7,0.00181555]
[1761012420167,1.6823,3937.8,3937.7,0.00181555]
[1761012420572,1.6823,3937.8,3937.7,0.35921555]
[1761012420767,0.457,3937.8,3937.7,1.22681555]
[1761012420972,1.6823,3937.8,3937.7,0.00181555]
[1761012421769,6.6823,3937.8,3937.7,0.00181555]
[1761012423560,1.6824,3937.0,3936.9,1.225]
[1761012423762,1.68243,3936.7,3936.6,0.8677]
[1761012424165,1.68249,3936.2,3936.1,6.709]
[1761012424365,0.45719,3936.2,3936.1,1.225]
[1761012424659,1.68249,3936.2,3936.1,0.00255018]
[1761012425571,1.15979,3936.2,3936.1,1.22755018]
[1761012426072,1.68249,3936.2,3936.1,1.22755018]
[1761012426267,0.3306,3936.2,3936.1,1.22755018]
[1761012426564,1.2253,3936.2,3936.1,1.22755018]
[1761012427564,1.2253,3936.2,3936.1,0.00255018]
[1761012429477,6.2253,3936.2,3936.1,0.00255018]
[1761012429670,0.45728,3935.4,3935.1,0.8677]
[1761012429978,1.68258,3935.4,3935.3,0.8677]
[1761012430370,0.45732,3935.1,3935.0,0.3574]
[1761012430571,0.7026,3935.1,3935.0,1.225]
[1761012430870,0.00282105,3935.1,3935.0,1.44046205]
[1761012431970,0.00282105,3935.1,3935.0,6.44046205]
[1761012433775,0.00282105,3935.1,3935.0,9.78198364]
[1761012435172,0.00282105,3935.1,3935.0,1.44046205]
[1761012435371,0.33342105,3935.1,3935.0,1.44046205]
[1761012435678,1.22812105,3935.1,3935.0,1.22746205]
[1761012437082,1.22812105,3935.1,3935.0,1.41166205]
[1761012437083,0.70542105,3935.1,3935.0,1.41166205]
[1761012437285,0.33342105,3935.1,3935.0,1.41166205]
[1761012437986,1.14532105,3935.1,3935.0,1.22746205]
[1761012438385,1.14532105,3935.1,3935.0,1.41166205]
[1761012439089,1.14532105,3935.1,3935.0,1.22746205]
[1761012440486,0.64292105,3935.1,3935.0,1.41166205]
[1761012442182,0.33342105,3935.1,3935.0,1.41166205]
[1761012442382,0.00282105,3935.1,3935.0,1.41166205]
[1761012442583,0.32412105,3935.1,3935.0,1.41166205]
[1761012443178,0.32412105,3935.1,3935.0,0.18666205]
[1761012443390,1.7848,3933.5,3933.4,1.36041335]
[1761012443690,0.6965,3933.0,3932.9,0.0638]
[1761012444076,0.95997,3932.9,3932.7,7.057]
[1761012444281,0.8249,3933.0,3931.2,0.45777]
[1761012444282,0.1941,3932.5,3931.2,0.45777]
[1761012444479,0.5024,3931.3,3931.2,0.00192821]
[1761012444681,0.50533915,3931.3,3931.2,0.00192821]
[1761012445883,0.5024,3930.9,3930.0,0.0319]
[1761012446088,0.1941,3930.6,3930.4,0.45786]
[1761012446285,0.5024,3930.9,3930.7,0.45782]
[1761012446490,0.5024,3930.9,3930.7,0.48972]
[1761012446792,0.5024,3930.9,3930.7,0.49204987]
[1761012446992,0.50533915,3931.3,3931.0,0.45779]
[1761012447187,0.50533915,3931.3,3930.7,0.00232987]
[1761012447882,0.4805,3931.2,3930.7,0.00232987]
[1761012448285,0.4805,3931.1,3930.7,0.00232987]
[1761012448687,0.4805,3931.1,3930.8,0.45781]
[1761012448881,0.4805,3931.1,3930.7,0.00232987]
[1761012450190,0.00293915,3931.3,3930.7,0.00232987]
[1761012450386,0.199,3930.6,3930.4,6.91832987]
[1761012450591,0.4805,3930.5,3930.4,6.96432987]
[1761012450898,0.4805,3930.5,3930.4,6.91832987]
[1761012451289,0.4805,3930.5,3930.1,0.45789]
[1761012451490,0.93836,3930.5,3930.1,0.00239044]
[1761012451696,0.4805,3930.4,3930.1,0.00239044]